fUSD/lending_fUSD_20240201
["ID","MTS","AMOUNT","RATE_DAILY","PERIOD"]
[313104573,1706751037222,-15030.68395755,0.00033793,6]
[313104574,1706751037232,-29065.0,0.00033803,2]
[313104575,1706751037242,-994.31355808,0.0003382,6]
[313104576,1706751037256,-188.13113695,0.00033871,2]
[313104577,1706751037266,-1982.48,0.00033939,2]
[313104578,1706751037277,-64158.53218304,0.00033961,6]
[313104579,1706751037290,-999.82776603,0.00033961,6]
[313104588,1706751038315,-158.72109327,0.00033552,2]
[313104589,1706751038325,-1401.34344803,0.00033961,6]
[313104590,1706751038377,-550.4538822,0.00033961,6]
[313104591,1706751038386,-2227.77144582,0.00033962,6]
[313104592,1706751038434,-995.87,0.00033422,5]
[313104593,1706751038444,-14549.76787398,0.00033962,6]
[313104594,1706751038454,-500.0,0.0003397,2]
[313104595,1706751038463,-638.32,0.0003397,2]
[313104596,1706751038473,-662.47,0.0003397,2]
[313104597,1706751038482,-652.82,0.0003397,2]
[313104598,1706751038491,-928.46,0.0003397,2]
[313104599,1706751038504,-540.51,0.0003397,2]
[313104600,1706751038513,-1785.32,0.0003397,2]
[313104601,1706751038523,-500.0,0.0003397,2]
[313104602,1706751038532,-744.36,0.0003397,2]
[313104603,1706751038542,-1344.23,0.0003397,2]
[313104604,1706751038551,-652.83,0.0003397,2]
[313104605,1706751038560,-401.82,0.0003397,2]
[313104606,1706751038570,-791.3,0.0003397,2]
[313104607,1706751038579,-422.61528376,0.0003397,2]
[313104608,1706751038588,-500.0,0.0003397,2]
[313104609,1706751038597,-500.0,0.0003397,2]
[313104610,1706751038607,-500.0,0.0003397,2]
[313104611,1706751038616,-2731.97,0.0003397,2]
[313104612,1706751038625,-1246.27,0.0003397,2]
[313104613,1706751038634,-500.0,0.0003397,2]
[313104614,1706751038645,-811.79,0.0003397,2]
[313104615,1706751038654,-500.0,0.0003397,2]
[313104616,1706751038664,-531.63,0.0003397,2]
[313104617,1706751038673,-500.0,0.0003397,2]
[313104618,1706751038684,-500.0,0.0003397,2]
[313104619,1706751038698,-806.29,0.0003397,2]
[313104620,1706751038708,-500.0,0.0003397,2]
[313104621,1706751038718,-693.38,0.0003397,2]
[313104622,1706751038728,-500.0,0.0003397,2]
[313104623,1706751038739,-500.0,0.0003397,2]
[313104629,1706751038748,-318.74560589,0.0003397,2]
[313104630,1706751038944,-500.0,0.0003397,2]
[313104631,1706751038954,-500.0,0.0003397,2]
[313104632,1706751038964,-500.0,0.0003397,2]
[313104633,1706751038974,-965.63,0.0003397,2]
[313104634,1706751038984,-549.90235491,0.0003397,2]
[313104635,1706751038993,-500.0,0.00033971,2]
[313104636,1706751039006,-500.0,0.00033971,2]
[313104637,1706751039015,-500.0,0.00033971,2]
[313104638,1706751039025,-791.85,0.00033971,2]
[313104639,1706751039034,-234.36544824,0.00033971,2]
[313104640,1706751039044,-500.0,0.00033971,2]
[313104641,1706751039054,-500.0,0.00033971,2]
[313104642,1706751039064,-500.0,0.00033971,2]
[313104643,1706751039074,-500.0,0.00033971,2]
[313104644,1706751039084,-500.0,0.00033971,2]
[313104645,1706751039093,-911.13,0.00033971,2]
[313104646,1706751039105,-500.0,0.00033971,2]
[313104647,1706751039115,-500.0,0.00033971,2]
[313104648,1706751039124,-43.32982559,0.00033971,2]
[313104653,1706751039509,-456.67017441,0.00033971,2]
[313104654,1706751039519,-518.83,0.00033971,2]
[313104655,1706751039529,-500.0,0.00033971,2]
[313104656,1706751039538,-1613.63,0.00033971,7]
[313104657,1706751039547,-500.0,0.00033971,2]
[313104658,1706751039557,-500.0,0.00033971,2]
[313104659,1706751039566,-500.0,0.00033971,2]
[313104660,1706751039575,-493.38122987,0.00033971,2]
[313104661,1706751039585,-500.0,0.00033971,2]
[313104662,1706751039595,-500.0,0.00033971,2]
[313104663,1706751039604,-500.0,0.00033971,2]
[313104664,1706751039614,-500.0,0.00033971,2]
[313104665,1706751039623,-500.0,0.00033971,2]
[313104666,1706751039633,-500.0,0.00033971,2]
[313104667,1706751039642,-500.0,0.00033971,2]
[313104668,1706751039652,-500.0,0.00033971,2]
[313104669,1706751039661,-500.0,0.00033971,2]
[313104670,1706751039671,-500.0,0.00033971,2]
[313104671,1706751039680,-368.50969372,0.00033971,2]
[313104672,1706751039698,-520.51568519,0.00033422,2]
[313104673,1706751039708,-131.49030628,0.00033971,2]
[313104674,1706751039719,-8.97570255,0.00033971,2]
[313104675,1706751039732,-278.59886516,0.00033971,2]
[313104676,1706751039744,-212.42543229,0.00033971,2]
[313104677,1706751039755,-500.0,0.00033971,2]
[313104678,1706751039763,-549.76759004,0.00033971,2]
[313104679,1706751039773,-574.38698624,0.00033971,2]
[313104680,1706751039783,-500.0,0.00033971,2]
[313104681,1706751039793,-500.0,0.00033971,2]
[313104682,1706751039803,-500.0,0.00033971,2]
[313104683,1706751039812,-500.0,0.00033971,2]
[313104684,1706751039822,-500.0,0.00033971,2]
[313104685,1706751039831,-232.19009616,0.00033971,2]
[313104686,1706751039841,-500.0,0.00033971,2]
[313104687,1706751039850,-195.81061892,0.00033971,2]
[313104705,1706751040929,-530.51524442,0.00033422,2]
[313104706,1706751040938,-995.87,0.0003397,5]
[313104707,1706751040948,-319.57938108,0.00033971,2]
[313104708,1706751040957,-500.0,0.00033971,2]
[313104709,1706751040966,-500.0,0.00033971,2]
[313104710,1706751040975,-669.05,0.00033971,2]
[313104711,1706751040984,-500.0,0.00033971,2]
[313104712,1706751040993,-567.35,0.00033971,2]
[313104713,1706751041003,-500.0,0.00033971,2]
[313104714,1706751041013,-500.0,0.00033971,2]
[313104715,1706751041024,-500.0,0.00033971,2]
[313104716,1706751041033,-500.0,0.00033971,2]
[313104717,1706751041044,-500.0,0.00033971,2]
[313104718,1706751041052,-500.0,0.00033971,2]
[313104719,1706751041062,-500.0,0.00033971,2]
[313104720,1706751041071,-500.0,0.00033971,2]
[313104721,1706751041080,-500.0,0.00033971,2]
[313104722,1706751041089,-500.0,0.00033971,2]
[313104723,1706751041098,-500.0,0.00033971,2]
[313104724,1706751041107,-1687.18,0.00033971,2]
[313104725,1706751041116,-500.0,0.00033971,2]
[313104726,1706751041126,-507.27,0.00033971,2]
[313104727,1706751041136,-500.0,0.00033971,2]
[313104728,1706751041145,-1466.44,0.00033971,2]
[313104729,1706751041155,-500.0,0.00033971,2]
[313104730,1706751041165,-500.0,0.00033971,2]
[313104731,1706751041175,-3011.45,0.00033971,2]
[313104732,1706751041185,-1759.87,0.00033971,2]
[313104733,1706751041195,-500.0,0.00033971,2]
[313104734,1706751041204,-500.0,0.00033971,2]
[313104735,1706751041213,-500.0,0.00033971,2]
[313104736,1706751041222,-715.02,0.00033971,2]
[313104737,1706751041231,-500.0,0.00033971,2]
[313104738,1706751041241,-500.0,0.00033971,2]
[313104739,1706751041253,-579.07,0.00033971,2]
[313104740,1706751041262,-529.4,0.00033971,2]
[313104741,1706751041272,-855.91,0.00033971,2]
[313104742,1706751041281,-533.75,0.00033971,2]
[313104743,1706751041290,-500.0,0.00033971,2]
[313104744,1706751041299,-500.0,0.00033971,2]
[313104745,1706751041309,-500.0,0.00033971,2]
[313104746,1706751041318,-812.18,0.00033971,2]
[313104747,1706751041328,-1780.38,0.00033971,2]
[313104748,1706751041340,-500.0,0.00033971,2]
[313104749,1706751041350,-914.58,0.00033971,2]
[313104750,1706751041361,-1686.6,0.00033971,2]
[313104751,1706751041371,-500.0,0.00033971,2]
[313104752,1706751041380,-604.26,0.00033971,2]
[313104753,1706751041389,-500.0,0.00033971,2]
[313104754,1706751041398,-678.92,0.00033971,2]
[313104755,1706751041407,-500.0,0.00033971,2]
[313104756,1706751041417,-842.96,0.00033971,2]
[313104757,1706751041426,-19465.36739388,0.00033971,2]
[313104758,1706751041438,-497.6512311,0.00033971,2]
[313104770,1706751043511,-507.05247184,0.00033422,2]
[313104771,1706751043522,-500.0,0.00033422,2]
[313104773,1706751043531,-512.97825086,0.00033422,2]
[313104808,1706751043899,-36.78458105,0.00033422,2]
[313104810,1706751043909,-462.51228514,0.00033422,2]
[313104812,1706751043920,-37.48771486,0.00033422,2]
[313104814,1706751043930,-673.88041502,0.00033422,2]
[313104815,1706751043942,-274.40958498,0.00033422,2]
[313104817,1706751043951,-521.14536497,0.00033422,2]
[313104819,1706751043960,-516.98189519,0.00033423,2]
[313104820,1706751043969,-500.0,0.00033423,2]
[313104821,1706751043979,-500.0,0.0003397,2]
[313104822,1706751043988,-389.72113505,0.0003397,2]
[313104823,1706751043999,-110.27886495,0.0003397,2]
[313104824,1706751044010,-948.29,0.0003397,2]
[313104825,1706751044019,-9331.96513505,0.0003397,2]
[313104826,1706751044030,-3518.27592461,0.0003397,2]
[313104827,1706751044049,-359.97119606,0.0003397,2]
[313104828,1706751044065,-2139.35499632,0.0003397,2]
[313104846,1706751044391,-216.78018043,0.00033935,2]
[313104848,1706751044401,-204.41632021,0.0003397,2]
[313104850,1706751044412,-2286.61146279,0.0003397,2]
[313104852,1706751044424,-4204.89999999,0.0003397,2]
[313104853,1706751044436,-1102.15916704,0.0003397,2]
[313104889,1706751046361,-155.20119109,0.00026489,2]
[313104891,1706751046371,-1377.73750852,0.00033421,4]
[313104895,1706751046559,-155.0,0.00033421,2]
[313104896,1706751046569,-3199.01053178,0.00033421,2]
[313104897,1706751046579,-503.29531651,0.00033423,2]
[313104898,1706751046588,-715.3,0.00033423,2]
[313104899,1706751046598,-500.0,0.00033423,2]
[313104900,1706751046607,-414.6150772,0.00033969,2]
[313104901,1706751046616,-14124.80637829,0.0003397,2]
[313104902,1706751046645,-591.87,0.00033423,2]
[313104903,1706751046654,-538.005,0.0003397,2]
[313104904,1706751046709,-68500.82980443,0.0003397,2]
[313104905,1706751046718,-392.53923825,0.00033971,14]
[313104906,1706751046727,-43.32137502,0.00033971,2]
[313104907,1706751046737,-908.41,0.00033971,2]
[313104908,1706751046747,-500.0,0.00033971,2]
[313104909,1706751046755,-500.0,0.00033971,2]
[313104910,1706751046766,-500.0,0.00033971,2]
[313104911,1706751046774,-1380.34,0.00033971,2]
[313104912,1706751046784,-500.0,0.00033971,2]
[313104913,1706751046794,-3815.84,0.00033971,2]
[313104914,1706751046803,-278.63082933,0.00033971,2]
[313104915,1706751046814,-581.17,0.00033971,2]
[313104916,1706751046824,-3275.23,0.00033971,2]
[313104917,1706751046833,-500.0,0.00033971,2]
[313104918,1706751046842,-500.0,0.00033971,2]
[313104919,1706751046851,-997.16,0.00033971,2]
[313104920,1706751046860,-500.0,0.00033971,2]
[313104921,1706751046869,-500.0,0.00033971,2]
[313104922,1706751046879,-500.0,0.00033971,2]
[313104923,1706751046889,-1484.95,0.00033971,2]
[313104924,1706751046898,-500.0,0.00033971,2]
[313104925,1706751046907,-812.12,0.00033971,2]
[313104926,1706751046916,-500.0,0.00033971,2]
[313104927,1706751046925,-500.0,0.00033971,2]
[313104928,1706751046934,-500.0,0.00033971,2]
[313104929,1706751046943,-2628.35,0.00033971,2]
[313104930,1706751046953,-1155.57,0.00033971,2]
[313104931,1706751046962,-500.0,0.00033971,2]
[313104932,1706751046971,-500.0,0.00033971,2]
[313104933,1706751046980,-189.45610519,0.00033971,2]
[313104934,1706751046989,-1206.6,0.00033971,2]
[313104935,1706751046998,-719.21,0.00033971,2]
[313104936,1706751047009,-500.0,0.00033971,2]
[313104937,1706751047018,-500.0,0.00033971,2]
[313104938,1706751047027,-3393.62,0.00033971,2]
[313104939,1706751047036,-500.0,0.00033971,2]
[313104940,1706751047045,-794.7,0.00033971,2]
[313104941,1706751047054,-500.0,0.00033971,2]
[313104942,1706751047063,-584.9,0.00033971,2]
[313104943,1706751047073,-500.0,0.00033971,2]
[313104944,1706751047082,-1511.96,0.00033971,2]
[313104945,1706751047091,-948.65,0.00033971,2]
[313104946,1706751047100,-500.0,0.00033971,2]
[313104947,1706751047110,-672.7,0.00033971,2]
[313104948,1706751047119,-500.0,0.00033971,2]
[313104949,1706751047128,-630.33,0.00033971,2]
[313104950,1706751047137,-500.0,0.00033971,2]
[313104951,1706751047147,-742.82,0.00033971,2]
[313104952,1706751047156,-500.0,0.00033971,2]
[313104953,1706751047165,-500.0,0.00033971,2]
[313104954,1706751047175,-500.0,0.00033971,2]
[313104955,1706751047185,-1957.6,0.00033971,2]
[313104956,1706751047194,-500.0,0.00033971,2]
[313104957,1706751047204,-3247.43,0.00033971,2]
[313104958,1706751047213,-651.12,0.00033971,2]
[313104959,1706751047221,-500.0,0.00033971,2]
[313104960,1706751047230,-963.87,0.00033971,2]
[313104961,1706751047239,-1315.53,0.00033971,2]
[313104962,1706751047249,-379.89408109,0.00033971,2]
[313104963,1706751047259,-678.92,0.00033971,2]
[313104964,1706751047268,-500.0,0.00033971,2]
[313104965,1706751047278,-500.0,0.00033971,2]
[313104966,1706751047288,-500.0,0.00033971,2]
[313104967,1706751047297,-500.0,0.00033971,2]
[313104968,1706751047306,-500.0,0.00033971,2]
[313104969,1706751047315,-823.24,0.00033971,2]
[313104970,1706751047324,-500.0,0.00033971,2]
[313104971,1706751047333,-1126.15,0.00033971,2]
[313104972,1706751047342,-500.0,0.00033971,2]
[313104973,1706751047352,-1680.43,0.00033971,2]
[313104974,1706751047361,-1000.0,0.00033971,7]
[313104975,1706751047370,-591.5,0.00033971,2]
[313104976,1706751047379,-500.0,0.00033971,2]
[313104977,1706751047388,-607.03,0.00033971,2]
[313104978,1706751047397,-500.0,0.00033971,2]
[313104979,1706751047406,-802.86,0.00033971,2]
[313104980,1706751047415,-1704.98,0.00033971,2]
[313104981,1706751047424,-500.0,0.00033971,2]
[313104982,1706751047433,-500.0,0.00033971,2]
[313104983,1706751047442,-1000.0,0.00033971,7]
[313104984,1706751047451,-692.31,0.00033971,2]
[313104985,1706751047459,-500.0,0.00033971,2]
[313104986,1706751047469,-715.3,0.00033971,2]
[313104987,1706751047478,-500.0,0.00033971,2]
[313104988,1706751047487,-500.0,0.00033972,2]
[313104989,1706751047497,-1113.48,0.00033972,2]
[313104990,1706751047505,-500.0,0.00033972,2]
[313104991,1706751047516,-500.0,0.00033972,2]
[313104992,1706751047525,-500.0,0.00033972,2]
[313104993,1706751047535,-500.0,0.00033972,2]
[313104994,1706751047543,-500.0,0.00033972,2]
[313104995,1706751047552,-500.0,0.00033972,2]
[313104996,1706751047561,-500.0,0.00033972,2]
[313104997,1706751047570,-500.0,0.00033972,2]
[313104998,1706751047579,-500.0,0.00033972,2]
[313104999,1706751047588,-500.0,0.00033972,2]
[313105000,1706751047597,-500.0,0.00033972,2]
[313105001,1706751047605,-500.0,0.00033972,2]
[313105002,1706751047614,-1208.58,0.00033972,2]
[313105003,1706751047624,-500.0,0.00033972,2]
[313105004,1706751047633,-500.0,0.00033972,2]
[313105005,1706751047642,-500.0,0.00033972,2]
[313105006,1706751047650,-500.0,0.00033972,2]
[313105007,1706751047659,-500.0,0.00033972,2]
[313105008,1706751047668,-583.31,0.00033972,2]
[313105009,1706751047678,-500.0,0.00033972,2]
[313105010,1706751047689,-1528.21,0.00033972,2]
[313105011,1706751047698,-573.78,0.00033972,2]
[313105012,1706751047708,-249.34585039,0.00034,4]
[313105013,1706751047718,-176.76,0.00034067,2]
[313105014,1706751047727,-1500.63160964,0.00034198,2]
[313105015,1706751047736,-1500.63160964,0.00034309,2]
[313105016,1706751047745,-994.31355808,0.00034317,6]
[313105017,1706751047754,-429.576,0.00034381,2]
[313105018,1706751047764,-237.31,0.00034381,2]
[313105019,1706751047774,-230.406,0.00034381,2]
[313105020,1706751047783,-477.76,0.0003443,2]
[313105021,1706751047792,-204.1065,0.0003443,2]
[313105022,1706751047802,-200.0,0.000345,14]
[313105023,1706751047811,-458.37736524,0.00034506,14]
[313105024,1706751047820,-2505.70742375,0.00034506,2]
[313105025,1706751047829,-8388.76965991,0.00034506,7]
[313105026,1706751047838,-15636.31926939,0.00034509,7]
[313105058,1706751539278,177.70417391,0.00022677,2]
[313105059,1706751653022,-350.0,0.00025,3]
[313105060,1706751653047,-139.7853,0.00027,3]
[313105061,1706751673908,150.0,0.00021772,2]
[313105062,1706751675207,150.89419686,0.0002232,2]
[313105063,1706751815395,201.06,0.00029971,120]
[313105064,1706751851905,152.32204399,0.00022649,2]
[313105065,1706752096528,2309.03489424,0.00022638,2]
[313105072,1706752231511,-311.04516477,0.00022628,2]
[313105074,1706752231522,-302.1607977,0.00022628,2]
[313105076,1706752231533,-887.811445,0.00022628,2]
[313105077,1706752231546,-157.0006859,0.00022628,2]
[313105078,1706752231556,-525.29809218,0.00022629,2]
[313105079,1706752231567,-3635.78545975,0.00022629,2]
[313105080,1706752231577,-33855.79045381,0.00022629,2]
[313105081,1706752231587,-583.80255041,0.0002263,2]
[313105082,1706752231597,-3199.01053178,0.0002263,2]
[313105083,1706752231607,-4500.57991331,0.0002263,2]
[313105084,1706752231617,-26156.30190576,0.00022638,2]
[313105085,1706752231626,-150.0,0.00022729,2]
[313105086,1706752231636,-1605.73696532,0.00022735,2]
[313105087,1706752231646,-1125.37323501,0.0002276,2]
[313105088,1706752231656,-21566.91410674,0.00022763,2]
[313105089,1706752231666,-7510.482,0.00022763,2]
[313105090,1706752231675,-499.99,0.00022763,2]
[313105091,1706752231685,-499.99,0.00023,2]
[313105092,1706752231695,-150.0,0.00023,2]
[313105093,1706752231705,-152.32204397,0.00023983,2]
[313105094,1706752231714,-3077.86,0.00023983,2]
[313105095,1706752231727,-150.99,0.0002424,2]
[313105096,1706752231737,-1832.51,0.0002424,2]
[313105097,1706752231747,-304.42296087,0.00025,2]
[313105098,1706752231757,-2320.50679205,0.00025,2]
[313105099,1706752231767,-202.63807571,0.00025001,2]
[313105100,1706752231777,-210.0,0.00025002,2]
[313105101,1706752231787,-152.32204397,0.00025317,2]
[313105102,1706752231797,-152.32204397,0.00026651,2]
[313105103,1706752231806,-260.2147,0.00027,3]
[313105104,1706752231815,-183.0,0.00027502,2]
[313105105,1706752231825,-572.69,0.00027925,2]
[313105107,1706752231834,-152.32204397,0.00027986,2]
[313105108,1706752231844,-305.55078485,0.00028492,2]
[313105110,1706752231853,-593.6,0.00028862,2]
[313105112,1706752231862,-9022.85,0.00028872,2]
[313105113,1706752231871,-2915.3596,0.00028899,2]
[313105114,1706752231880,-838.76,0.00028918,2]
[313105115,1706752231890,-23900.0,0.00028918,2]
[313105116,1706752231899,-500.0,0.00028942,2]
[313105117,1706752231912,-184.04,0.00028961,2]
[313105118,1706752231921,-250.0,0.00028977,2]
[313105119,1706752231931,-5199.17509696,0.00028999,2]
[313105120,1706752231940,-6366.0,0.00029,2]
[313105121,1706752231949,-2923.0,0.00029,2]
[313105122,1706752231959,-450.0,0.00029,3]
[313105123,1706752231969,-750.0,0.00029049,2]
[313105124,1706752231980,-152.32204397,0.0002932,2]
[313105125,1706752231990,-197.53072515,0.00029382,4]
[313105126,1706752231999,-150.0,0.00029409,2]
[313105127,1706752232009,-200.0,0.00029426,2]
[313105128,1706752232021,-2000.0,0.00029489,2]
[313105129,1706752232031,-250.0,0.0002952,2]
[313105130,1706752232041,-150.0,0.00029534,2]
[313105131,1706752232050,-250.0,0.00029735,2]
[313105132,1706752232062,-164.95,0.00029737,2]
[313105133,1706752232072,-168.59,0.00029787,2]
[313105134,1706752232081,-392.96,0.00029797,2]
[313105135,1706752232091,-544.0,0.00029836,2]
[313105136,1706752232102,-14482.94,0.00029837,2]
[313105137,1706752232112,-166.07,0.00029839,2]
[313105138,1706752232122,-786.67,0.00029863,2]
[313105139,1706752232133,-209.0,0.00029931,2]
[313105140,1706752232143,-204.0,0.00029931,2]
[313105141,1706752232152,-155.0,0.0003,2]
[313105142,1706752232162,-500.0,0.0003,2]
[313105143,1706752232171,-9907.76,0.0003,2]
[313105144,1706752232181,-167.87,0.00030147,2]
[313105145,1706752232190,-572.69,0.00030189,2]
[313105146,1706752232200,-456.0,0.00030321,2]
[313105147,1706752232209,-167.87,0.00030409,2]
[313105148,1706752232218,-403.3249,0.00030556,2]
[313105149,1706752232231,-838.76,0.00030562,2]
[313105150,1706752232241,-152.32204397,0.00030654,2]
[313105151,1706752232257,-2194.85,0.00030665,2]
[313105152,1706752232267,-167.87,0.00030671,2]
[313105153,1706752232277,-167.87,0.00030933,2]
[313105154,1706752232286,-500.0,0.00031,3]
[313105155,1706752232296,-605.4659191,0.00031063,4]
[313105156,1706752232306,-156.20504146,0.00031065,2]
[313105157,1706752232317,-162.70591296,0.00031065,4]
[313105158,1706752232326,-167.87,0.00031195,2]
[313105159,1706752232335,-167.87,0.00031456,2]
[313105160,1706752232345,-167.87,0.00031718,2]
[313105161,1706752232354,-209.0,0.0003181,5]
[313105162,1706752232364,-180.0,0.0003183,2]
[313105163,1706752232374,-1518.97662587,0.00031887,2]
[313105164,1706752232383,-152.32204397,0.00031988,2]
[313105165,1706752232393,-10000.0,0.00032,2]
[313105166,1706752232411,-155.0,0.00032,2]
[313105167,1706752232429,-11434.22059929,0.00032004,2]
[313105168,1706752232446,-1560.78681888,0.00032011,28]
[313105169,1706752232462,-161.75,0.00032075,2]
[313105170,1706752232477,-838.76,0.00032206,2]
[313105171,1706752232490,-1518.97662587,0.0003224,2]
[313105172,1706752232504,-400.0,0.000324,11]
[313105173,1706752232519,-1518.97662587,0.00032412,2]
[313105174,1706752232533,-572.69,0.00032453,2]
[313105175,1706752232547,-900.0,0.000325,11]
[313105176,1706752232561,-310.55467533,0.00032544,4]
[313105177,1706752232573,-455.41093407,0.00032545,4]
[313105178,1706752232585,-1400.0,0.000326,11]
[313105179,1706752232598,-1900.0,0.000327,11]
[313105180,1706752232611,-3424.0,0.00032755,2]
[313105181,1706752232624,-1518.97662587,0.00032759,2]
[313105182,1706752232637,-2300.0,0.000328,11]
[313105183,1706752232650,-500.0,0.00032876,2]
[313105184,1706752232664,-500.0,0.00032876,2]
[313105185,1706752232674,-500.0,0.00032876,2]
[313105186,1706752232685,-539.74895278,0.00032876,2]
[313105187,1706752232701,-605.06507411,0.00032876,2]
[313105188,1706752232713,-530.01713906,0.00032876,2]
[313105189,1706752232729,-509.34337256,0.00032876,2]
[313105190,1706752232742,-500.0,0.00032876,2]
[313105191,1706752232753,-500.0,0.00032876,2]
[313105192,1706752232766,-523.24924264,0.00032876,2]
[313105193,1706752232779,-553.05236765,0.00032876,2]
[313105194,1706752232792,-541.03355387,0.00032876,2]
[313105195,1706752232805,-562.31857682,0.00032876,2]
[313105196,1706752232819,-500.0,0.00032876,2]
[313105197,1706752232833,-506.2866747,0.00032876,2]
[313105198,1706752232845,-600.20773076,0.00032876,2]
[313105199,1706752232856,-544.68768783,0.00032876,2]
[313105200,1706752232867,-535.0928758,0.00032876,2]
[313105201,1706752232879,-500.0,0.00032876,2]
[313105202,1706752232892,-579.89018669,0.00032876,2]
[313105203,1706752232905,-567.96288377,0.00032876,2]
[313105204,1706752232917,-531.84344696,0.00032876,2]
[313105205,1706752232933,-529.05579305,0.00032876,2]
[313105206,1706752232944,-525.38087471,0.00032876,2]
[313105207,1706752232955,-513.59565743,0.00032876,2]
[313105208,1706752232967,-557.09124727,0.00032876,2]
[313105209,1706752232982,-500.0,0.00032876,2]
[313105210,1706752232993,-649.65635274,0.00032876,2]
[313105211,1706752233006,-500.0,0.00032876,2]
[313105212,1706752233019,-594.75828416,0.00032876,2]
[313105213,1706752233038,-532.9097287,0.00032876,2]
[313105214,1706752233051,-541.77521564,0.00032876,2]
[313105215,1706752233067,-592.65962919,0.00032876,2]
[313105216,1706752233080,-618.92973505,0.00032876,2]
[313105217,1706752233094,-586.40516448,0.00032876,2]
[313105218,1706752233107,-316.25049314,0.00032876,2]
[313105219,1706752233119,-513.5107052,0.00032876,2]
[313105220,1706752233132,-575.7883176,0.00032876,2]
[313105221,1706752233144,-559.38057024,0.00032876,2]
[313105222,1706752233158,-508.71251663,0.00032876,2]
[313105223,1706752233170,-514.6076431,0.00032876,2]
[313105224,1706752233182,-573.15623421,0.00032876,2]
[313105225,1706752233194,-540.05970243,0.00032876,2]
[313105226,1706752233206,-547.90530502,0.00032876,2]
[313105227,1706752233219,-523.86603805,0.00032876,2]
[313105228,1706752233237,-524.80624883,0.00032876,2]
[313105229,1706752233250,-536.01922818,0.00032876,2]
[313105230,1706752233264,-529.20399963,0.00032876,2]
[313105231,1706752233276,-522.58014824,0.00032876,2]
[313105232,1706752233289,-506.12458948,0.00032876,2]
[313105233,1706752233302,-559.85204133,0.00032876,2]
[313105234,1706752233314,-562.05580285,0.00032876,2]
[313105235,1706752233326,-530.43189622,0.00032876,2]
[313105236,1706752233339,-232.59444958,0.00032876,2]
[313105237,1706752233351,-1072.90598637,0.00032876,2]
[313105238,1706752233364,-515.2194421,0.00032876,2]
[313105239,1706752233375,-628.86097965,0.00032876,2]
[313105240,1706752233388,-515.40470297,0.00032876,2]
[313105241,1706752233400,-500.0,0.00032876,2]
[313105242,1706752233412,-505.30855537,0.00032876,2]
[313105243,1706752233424,-540.94638444,0.00032876,2]
[313105244,1706752233436,-504.89786493,0.00032876,2]
[313105245,1706752233449,-506.57850204,0.00032876,2]
[313105246,1706752233460,-504.65002633,0.00032876,2]
[313105247,1706752233472,-520.32124004,0.00032876,2]
[313105248,1706752233490,-502.02722684,0.00032876,2]
[313105249,1706752233502,-590.25170034,0.00032876,2]
[313105250,1706752233513,-513.65274034,0.00032876,2]
[313105251,1706752233525,-505.934601,0.00032876,2]
[313105252,1706752233537,-557.1696274,0.00032876,2]
[313105253,1706752233549,-511.23634889,0.00032876,2]
[313105254,1706752233561,-590.68563617,0.00032876,2]
[313105255,1706752233573,-523.2807565,0.00032876,2]
[313105256,1706752233585,-511.83112064,0.00032876,2]
[313105257,1706752233597,-607.53298435,0.00032876,2]
[313105258,1706752233609,-623.52586102,0.00032876,2]